Cogmind - Beta 10.2 --- EXPLORER MODE // 2021.10.21 @ 15:39:02 Player: viper Result: Core destroyed Performance ------------- Evolutions (5) 2500 Regions Visited (10) 2000 Robots Destroyed (246) 1230 Value Destroyed (10014) 10014 Prototype IDs (8) 160 Alien Tech Used (0) 0 Bonus (1938) 1938 TOTAL SCORE: 17842 Bonus ------- High Alert Combat Kills 449 Follower Combat Kills 1346 Network Hubs Disabled 200 A7 Reached Mainframe 300 Friendly Fire -357 Cogmind --------- Core Integrity 0/1000 Matter 283/800 Energy 291/600 System Corruption 34% Temperature Cool (874) Movement Walking (150) Ox1 Location -5/Hub_04(d) Parts ------- > --- POWER (2) -------- (None) > --- PROPULSION (4) --- Flexi-carbon Leg Enhanced Armored Leg > --- UTILITY (8) ------ Large Storage Unit Energy Well Matter Compressor Matter Compressor Advanced Targeting Computer Experimental Targeting Computer Improved System Backup Module > --- WEAPON (4) ------- Wave Gun Mass Driver > --- INVENTORY (10) --- Improved Titanium Leg Axe Peak State ------------ > --- POWER ------------ Neutrino Core Particle Reactor > --- PROPULSION ------- Flexi-carbon Leg Flexi-carbon Leg Enhanced Armored Leg Enhanced Armored Leg > --- UTILITY ---------- Advanced Heat Sink Large Storage Unit Energy Well Matter Compressor Matter Compressor Improved Targeting Computer Advanced Targeting Computer Matter Filter > --- WEAPON ----------- Enhanced Coil Gun Enhanced Coil Gun Mass Driver Mass Driver > --- INVENTORY -------- Improved Titanium Leg Flexi-carbon Leg Flexi-carbon Leg Flexi-carbon Leg Tesla Rifle Heavy Laser Wave Gun KE Penetrator Mass Driver Axe [Rating: 99] Favorites ----------- Power Improved Deuterium Engine Engine Improved Deuterium Engine Power Core Neutrino Core Reactor Particle Reactor Propulsion Flexi-carbon Leg Leg Flexi-carbon Leg Utility Large Storage Unit Device Advanced Heat Sink Storage Large Storage Unit Processor Improved Targeting Computer Hackware System Shield Protection Power Shielding Weapon Gauss Rifle Energy Gun Heavy Laser Ballistic Gun Gauss Rifle Ballistic Cannon Gauss Cannon Launcher Advanced EMP Blaster Slashing Weapon Axe Build | -11 -10 -9 -8 -7 -6 -5 -5 -5 -5 -5 ------- Run | Scr Mat Mat Mat Fac Fac Fac Ext Cet Arc Hub Slots Evolved 11 | . 1 2 2 2 2 2 . . . . Power 1 | . 1 . . . . . . . . . Propulsion 2 | . . 2 . . . . . . . . Utility 6 | . . . 2 1 2 1 . . . . Weapon 2 | . . . . 1 . 1 . . . . Parts Attached 124 | 7 3 4 29 6 13 2 11 . 2 47 Power 21 | 1 1 . 7 2 3 . 2 . . 5 Engine 15 | 1 1 . 5 2 3 . 2 . . 1 Core 4 | . . . 2 . . . . . . 2 Reactor 2 | . . . . . . . . . . 2 Propulsion 35 | 2 2 2 9 . 4 . 4 . . 12 Treads . | . . . . . . . . . . . Leg 35 | 2 2 2 9 . 4 . 4 . . 12 Wheel . | . . . . . . . . . . . Hover . | . . . . . . . . . . . Flight . | . . . . . . . . . . . Utility 32 | 2 . . 5 1 3 1 4 . 2 14 Device 11 | . . . . 1 1 1 2 . . 6 Storage 9 | 1 . . 2 . . . 1 . . 5 Processor 4 | . . . 1 . . . . . 1 2 Hackware 1 | . . . . . . . . . 1 . Protection 7 | 1 . . 2 . 2 . 1 . . 1 Artifact . | . . . . . . . . . . . Weapon 36 | 2 . 2 8 3 3 1 1 . . 16 Energy Gun 5 | . . . . . . . . . . 5 Energy Cannon . | . . . . . . . . . . . Ballistic Gun 22 | 2 . 2 7 1 3 1 . . . 6 Ballistic Cannon 7 | . . . . 2 . . 1 . . 4 Launcher 1 | . . . 1 . . . . . . . Special Weapon . | . . . . . . . . . . . Impact Weapon . | . . . . . . . . . . . Slashing Weapon 1 | . . . . . . . . . . 1 Piercing Weapon . | . . . . . . . . . . . Special Melee Weapon . | . . . . . . . . . . . Unidentified Prototypes 5 | . . . 2 . . . . . . 3 Parts Lost 63 | . . . 12 4 7 1 2 . 2 35 Power 12 | . . . 2 1 2 . 1 . . 6 Propulsion 17 | . . . 7 2 1 . . . . 7 Utility 14 | . . . 1 . 1 1 1 . 2 8 Weapon 20 | . . . 2 1 3 . . . . 14 Highest Loss Streak 7 | . . . 5 3 3 1 1 . 2 7 Average Slot Usage (%) 95 | . 100 100 89 93 98 98 98 100 99 94 Engine 10 | . 25 20 14 12 10 11 10 11 11 2 Core 1 | . . . 1 . . . . . . 3 Leg 23 | . 25 40 23 23 24 22 21 22 22 21 Device 7 | . . . . 7 12 14 10 11 11 10 Storage 14 | . 12 10 16 14 12 11 10 11 11 17 Processor 7 | . . . 6 7 6 5 5 5 9 11 Protection 8 | . 12 10 9 7 12 11 15 16 8 . Ballistic Gun 13 | . 25 20 15 15 6 16 16 16 16 9 Ballistic Cannon 5 | . . . . 5 11 5 4 5 5 9 Naked Turns . | . . . . . . . . . . . Heaviest Build 95 | 16 21 23 39 56 73 78 82 76 76 95 Greatest Support 80 | 20 26 52 52 40 76 76 76 76 76 80 Greatest Overweight (x) 12 | 1 6 . 12 2 3 1 2 . . 1 Average Overweight (x) . | . . . . 1 . . . . . . Largest Inventory Capacity 10 | 8 8 8 10 10 10 10 10 10 10 10 Average Capacity 9 | 6 8 8 9 10 10 10 10 10 10 10 Most Carried 10 | 4 8 7 10 10 8 1 10 10 10 10 Average Carried 7 | 1 6 5 5 9 5 . 7 9 9 8 Final Capacity 10 | 8 8 8 10 10 10 10 10 10 10 10 Final Carried 10 | 4 7 7 10 8 2 1 10 10 9 2 Class Distribution -------------------- 32% | Hacker-Gunner 19% | Scavenger-Tank 18% | Hacker-Mutant 13% | Scavenger-Gunner 8% | Scavenger-Mutant 8% | Hacker-Tank Dominant Class ---------------- Hacker-Mutant | -10/Materials Hacker-Mutant | -9/Materials Hacker-Mutant | -8/Materials Scavenger-Gunner | -7/Factory Hacker-Gunner | -6/Factory Hacker-Tank | -5/Factory Scavenger-Tank | -5/Extension Scavenger-Tank | -5/Cetus Hacker-Gunner | -5/Archives Hacker-Gunner | -5/Hub_04(d) Resources | -11 -10 -9 -8 -7 -6 -5 -5 -5 -5 -5 ----------- Run | Scr Mat Mat Mat Fac Fac Fac Ext Cet Arc Hub Matter Collected 8191 | 248 133 313 809 1002 893 111 1021 288 85 3288 Remotely . | . . . . . . . . . . . Salvage Created 9864 | . 78 567 1630 1425 998 168 1138 159 322 3379 Parts 491 | . 7 30 86 80 56 7 42 4 16 163 Haulers Intercepted 8 | . . 1 . 2 . . . . . 5 Recyclers Shooed 2 | . . 1 . 1 . . . . . . Parts Field Recycled . | . . . . . . . . . . . Retrieved Matter . | . . . . . . . . . . . Parts Self-Destructed . | . . . . . . . . . . . Prevented . | . . . . . . . . . . . Kills | -11 -10 -9 -8 -7 -6 -5 -5 -5 -5 -5 ------- Run | Scr Mat Mat Mat Fac Fac Fac Ext Cet Arc Hub Combat Hostiles Destroyed 173 | . 3 9 27 27 22 3 15 4 4 59 Guns 112 | . 3 9 27 18 7 2 10 4 3 29 Cannons 61 | . . . . 9 15 1 5 . 1 30 Classes Destroyed 15 | . 2 5 4 2 . . 1 . . 1 Worker 23 | . . 1 1 4 3 . 1 . . 13 Builder 9 | . . . . 3 1 . . . . 5 Hauler 8 | . . 1 . 2 . . . . . 5 Recycler 7 | . . 1 2 1 1 . 1 . . 1 Operator 9 | . . . 1 4 . 1 1 . . 2 Watcher 16 | . 1 2 4 . 4 . . . . 5 Swarmer 22 | . 3 . 2 5 5 . . 2 . 5 Grunt 69 | . . 7 14 13 4 2 8 1 . 20 Brawler 2 | . . . 1 . . . . 1 . . Duelist 5 | . . . 1 . . 1 . . . 3 Protector 2 | . . . . . . . . . . 2 Sentry 37 | . . 2 8 6 6 . 3 . 4 8 Hunter 17 | . . . 1 1 5 . 3 . . 7 Programmer 14 | . . . . 2 2 . . . . 10 Behemoth 2 | . . . . . . . 1 . . 1 Lightning 3 | . . . . . . . . . . 3 Butcher 1 | . . . . . . . 1 . . . Best Kill Streak 11 | . 4 5 5 8 6 3 4 4 4 11 Combat Bots Only 7 | . 3 3 5 4 3 3 3 4 4 7 Max Kills in Single Turn 2 | . 1 2 1 2 1 1 2 1 1 2 Gunslinging 1 | . . . . 1 . . . . . . Exploded . | . . . . . . . . . . . Melee . | . . . . . . . . . . . Uniques/NPCs Destroyed . | . . . . . . . . . . . Combat | -11 -10 -9 -8 -7 -6 -5 -5 -5 -5 -5 -------- Run | Scr Mat Mat Mat Fac Fac Fac Ext Cet Arc Hub Damage Taken 11249 | . 40 283 1852 850 1119 97 858 120 213 5817 Core 1712 | . 11 56 254 133 71 9 49 . . 1129 Absorbed by Shields 359 | . . . . . . . 296 63 . . Core Remaining (%) 84 | 100 95 86 53 81 91 . . . . . Volleys Fired 631 | . 9 49 129 79 72 7 43 16 10 217 Largest 4 | . 2 2 2 3 3 4 4 4 4 4 Hottest 236 | . 40 43 53 121 124 132 132 132 132 236 Shots Fired 1766 | . 18 98 248 237 212 28 172 64 40 649 Gun 1146 | . 18 98 248 156 72 21 129 48 30 326 Cannon 620 | . . . . 81 140 7 43 16 10 323 Launcher . | . . . . . . . . . . . Special . | . . . . . . . . . . . Kinetic 1714 | . 18 98 248 237 212 28 172 64 40 597 Thermal 29 | . . . . . . . . . . 29 Explosive . | . . . . . . . . . . . Electromagnetic 23 | . . . . . . . . . . 23 Robot Hit Streak 98 | . 13 12 38 31 36 15 31 36 58 98 Robot Miss Streak 4 | . 2 3 3 1 4 1 2 1 . 2 Penetration Max 1 | . . . 1 1 1 . 1 1 . 1 Secondary Targets 10 | . 1 1 3 5 . . . . . . Max Gunslinging Chain 1 | . 1 1 1 1 . . . . . . Shots Hit Robots 1371 | . 15 79 209 189 161 20 121 40 34 503 Core Hits 521 | . 7 27 75 74 59 9 53 11 16 190 Critical Hits 50 | . 1 1 2 6 7 1 3 1 . 28 Critical Kills 18 | . . . . 3 1 . 3 1 . 10 Critical Parts Destroyed 31 | . 1 1 2 3 6 1 . . . 17 Melee Attacks 1 | . . . . . . . . . . 1 Impact . | . . . . . . . . . . . Slashing 1 | . . . . . . . . . . 1 Piercing . | . . . . . . . . . . . Sneak Attacks 1 | . . . . . . . . . . 1 Combat Hostiles . | . . . . . . . . . . . Follow-up Attacks . | . . . . . . . . . . . Damage Inflicted 30954 | . 116 795 2875 3874 3447 469 3121 1019 773 14465 Guns 18430 | . 116 795 2875 2320 1183 358 2408 793 582 7000 Cannons 12355 | . . . . 1554 2264 111 697 226 191 7312 Explosions . | . . . . . . . . . . . Melee 118 | . . . . . . . . . . 118 Ramming 51 | . . . . . . . 16 . . 35 Kinetic 29973 | . 116 795 2875 3874 3447 469 3105 1019 773 13500 Thermal 518 | . . . . . . . . . . 518 Explosive . | . . . . . . . . . . . Electromagnetic 294 | . . . . . . . . . . 294 Impact . | . . . . . . . . . . . Slashing 118 | . . . . . . . . . . 118 Piercing . | . . . . . . . . . . . Highest Corruption 34 | . . . . 1 1 . 2 2 2 34 Average Corruption 4 | . . . . 1 1 . 1 2 2 9 Corruption Purged 1 | . . . . . . . . . . 1 Effects 176 | . . . . 9 2 . 11 5 3 146 Message Errors 34 | . . . . 3 . . 5 1 1 24 Matter Fused 23 | . . . . . . . . . . 23 Heat Flow Errors 21 | . . . . . . . 2 2 1 16 Energy Discharges 15 | . . . . 2 . . 3 . 1 9 Parts Rejected 1 | . . . . . . . . . . 1 Data Loss (minor) 8 | . . . . 2 . . 1 . . 5 Data Loss (major) 3 | . . . . . . . . . . 3 Misfires 2 | . . . . . . . . . . 2 Alerts 1 | . . . . . . . . . . 1 Misdirections 2 | . . . . . . . . . . 2 Targeting Errors 56 | . . . . 2 . . . 2 . 52 Weapon Failures 10 | . . . . . 2 . . . . 8 Overload Shots . | . . . . . . . . . . . Overflow Damage 549 | . . . . 81 23 . . . . 445 Projectiles 471 | . . . . 81 23 . . . . 367 Explosions . | . . . . . . . . . . . Melee 78 | . . . . . . . . . . 78 Knockbacks 114 | . . . . 10 22 1 3 . . 78 Impact . | . . . . . . . . . . . Kinetic 99 | . . . . 8 18 1 3 . . 69 Secondary 15 | . . . . 2 4 . . . . 9 Self-Inflicted Damage 72 | . . . . . . . . . . 72 Shots 1 | . . . . . . . . . . 1 Rammed 3 | . . . . . . . 1 . . 2 Targets Rammed 8 | . . . . . . . 3 . . 5 Kicked 5 | . . . . . . . 2 . . 3 Crushed . | . . . . . . . . . . . Highest Temperature 874 | . 25 36 141 42 80 57 224 141 93 874 Average Temperature 64 | . 11 9 31 13 26 24 27 24 21 153 Received Heat Transfer 2856 | . . 216 936 345 219 72 219 21 45 783 Effects 44 | . . . . . . . . . . 44 Shutdowns 6 | . . . . . . . . . . 6 Energy Bleed 4 | . . . . . . . . . . 4 Interference 5 | . . . . . . . . . . 5 Matter Decay 3 | . . . . . . . . . . 3 Short Circuit 2 | . . . . . . . . . . 2 Damage (minor) 4 | . . . . . . . . . . 4 Damage (major) 16 | . . . . . . . . . . 16 Damage (core) 4 | . . . . . . . . . . 4 Siege Activations . | . . . . . . . . . . . Robots Corrupted . | . . . . . . . . . . . Combat Hostiles . | . . . . . . . . . . . Parts Fried 2 | . . . . . . . 2 . . . Impact Corruptions . | . . . . . . . . . . . Robots Melted . | . . . . . . . . . . . Combat Hostiles . | . . . . . . . . . . . Parts Melted 2 | . . . . . . . . . . 2 Heat Transferred 776 | . . . . . . . . . . 776 Parts Sabotaged . | . . . . . . . . . . . Parts Stolen . | . . . . . . . . . . . Parts Stripped . | . . . . . . . . . . . Power Chain Reactions . | . . . . . . . . . . . Missiles Intercepted . | . . . . . . . . . . . Alert | -11 -10 -9 -8 -7 -6 -5 -5 -5 -5 -5 ------- Run | Scr Mat Mat Mat Fac Fac Fac Ext Cet Arc Hub Peak Influence 680 | . 135 271 345 319 420 138 347 283 186 680 Initial 76 | . . 40 4 38 76 50 49 37 73 44 Average 185 | . 19 92 93 145 175 90 127 184 156 351 Maximum Alert Level 2 | . . 1 1 1 2 . 1 1 . 2 Low Security (%) 60 | 100 100 86 86 62 70 100 81 45 100 12 Level 1 30 | . . 13 13 37 29 . 18 54 . 52 Level 2 9 | . . . . . . . . . . 35 Level 3 . | . . . . . . . . . . . Level 4 . | . . . . . . . . . . . Level 5 . | . . . . . . . . . . . High Security . | . . . . . . . . . . . Max Security . | . . . . . . . . . . . Squads Dispatched 42 | . . 1 5 6 3 . 10 . . 17 Investigation 22 | . . 1 4 2 . . 9 . . 6 Extermination 8 | . . . . 1 2 . . . . 5 Reinforcement 10 | . . . 1 3 1 . 1 . . 4 Assault 1 | . . . . . . . . . . 1 Garrison 1 | . . . . . . . . . . 1 Intercept . | . . . . . . . . . . . Construction Impeded 2 | . . . . 1 . . 1 . . . Haulers Reinforced 1 | . . . . . 1 . . . . . Stealth | -11 -10 -9 -8 -7 -6 -5 -5 -5 -5 -5 --------- Run | Scr Mat Mat Mat Fac Fac Fac Ext Cet Arc Hub Distress Signals 9 | . . 1 2 . 3 . . 2 . 1 Communications Jammed . | . . . . . . . . . . . Distress Signals . | . . . . . . . . . . . Times Spotted 260 | . 6 13 41 30 26 4 38 14 4 84 Peak Tracking Total 9 | . 2 4 4 4 3 3 7 7 1 9 Tactical Retreats 7 | . 1 1 1 . . . 2 . . 2 Traps | -11 -10 -9 -8 -7 -6 -5 -5 -5 -5 -5 ------- Run | Scr Mat Mat Mat Fac Fac Fac Ext Cet Arc Hub Traps Triggered 10 | . . 1 1 3 . . 3 . . 2 Indirectly . | . . . . . . . . . . . Trap Hack Attempts . | . . . . . . . . . . . Triggered . | . . . . . . . . . . . Disarmed 6 | . 6 . . . . . . . . . Reprogrammed 4 | . . . 2 . . . 2 . . . Reused 2 | . . . . . . . 2 . . . Traps Extracted . | . . . . . . . . . . . Installed . | . . . . . . . . . . . Triggered 2 | . . . . . . . 2 . . . Machines | -11 -10 -9 -8 -7 -6 -5 -5 -5 -5 -5 ---------- Run | Scr Mat Mat Mat Fac Fac Fac Ext Cet Arc Hub Machines Disabled 37 | . . . 3 1 3 1 1 4 1 23 Max in Single Turn 4 | . . . 1 1 1 1 . 1 1 4 Garrison Access 3 | . . . 1 1 . . . . . 1 Network Hub 1 | . . . . . . . . . . 1 Machines Sabotaged . | . . . . . . . . . . . Garrisons Compromised . | . . . . . . . . . . . Overloaded Fab Kills . | . . . . . . . . . . . Fab Network Shutdowns . | . . . . . . . . . . . Hacking | -11 -10 -9 -8 -7 -6 -5 -5 -5 -5 -5 --------- Run | Scr Mat Mat Mat Fac Fac Fac Ext Cet Arc Hub Machines Accessed 50 | . 3 3 6 3 2 . 22 3 1 7 Terminals 44 | . 3 3 4 2 2 . 21 3 . 6 Fabricators . | . . . . . . . . . . . Repair Stations 2 | . . . 1 . . . 1 . . . Recycling Units . | . . . . . . . . . . . Scanalyzers . | . . . . . . . . . . . Garrison Access 3 | . . . 1 1 . . . . . 1 Total Hacks 164 | . 11 9 21 10 4 . 52 9 25 23 Successful 117 | . 10 6 12 5 2 . 37 9 25 11 Failed 47 | . 1 3 9 5 2 . 15 . . 12 Catastrophic 3 | . . 1 1 . . . 1 . . . Database Lockouts . | . . . . . . . . . . . Manual 10 | . 2 1 . . . . . 3 4 . Terminals 120 | . 11 9 14 8 4 . 46 9 . 19 Fabricators . | . . . . . . . . . . . Repair Stations 10 | . . . 4 . . . 6 . . . Recycling Units . | . . . . . . . . . . . Scanalyzers . | . . . . . . . . . . . Garrison Access 9 | . . . 3 2 . . . . . 4 Terminal Hacks 103 | . 9 5 8 4 2 . 31 9 25 10 Record 37 | . 1 . . . . . . 8 25 3 Part Schematic 2 | . . . . . . . 1 . . 1 Robot Schematic 1 | . . . . . . . 1 . . . Prototype ID Bank 1 | . . . . . . . 1 . . . Open Door 14 | . . . . . . . 13 1 . . Branch Access Points 4 | . 1 . 1 1 . . . . . 1 Emergency Access Points 4 | . 1 . . . 1 . . . . 2 Terminal Index 1 | . . . . . . . . . . 1 Repair Station Index 1 | . . . . . . . 1 . . . Scanalyzer Index 2 | . . . . . . . 1 . . 1 Alert Level 2 | . . . . . . . 2 . . . Unreport Threat 3 | . . 1 1 . . . 1 . . . Locate Traps 6 | . 2 . 2 1 . . 1 . . . Disarm Traps 1 | . 1 . . . . . . . . . Reprogram Traps 2 | . . . 1 . . . 1 . . . Dispatch Records 1 | . . 1 . . . . . . . . Maintenance Status 2 | . 1 . . . . . 1 . . . Surveillance Status 2 | . . 1 1 . . . . . . . Investigation Status 1 | . . . . . . . 1 . . . Reinforcement Status 1 | . . . . . . . 1 . . . Assault Status 2 | . . . . . . . 2 . . . Hauler Manifests 2 | . 1 . . . . . 1 . . . Registered Components 3 | . 1 1 . . . . 1 . . . Registered Prototypes 1 | . . 1 . . . . . . . . Zone Layout 7 | . . . 2 2 1 . 1 . . 1 Fabricator Hacks . | . . . . . . . . . . . Repair Station Hacks 9 | . . . 3 . . . 6 . . . Scan Component 5 | . . . 2 . . . 3 . . . Repair 4 | . . . 1 . . . 3 . . . Recycling Unit Hacks . | . . . . . . . . . . . Scanalyzer . | . . . . . . . . . . . Garrison Access Hacks 3 | . . . 1 1 . . . . . 1 Seal Access 3 | . . . 1 1 . . . . . 1 Unauthorized Hacks 2 | . 1 1 . . . . . . . . Terminals 2 | . 1 1 . . . . . . . . Track 2 | . 1 1 . . . . . . . . Fabricators . | . . . . . . . . . . . Repair Stations . | . . . . . . . . . . . Recycling Units . | . . . . . . . . . . . Scanalyzers . | . . . . . . . . . . . Garrison Access . | . . . . . . . . . . . Data Cores Recovered 4 | . . . . 2 . 1 1 . . . Used 2 | . . . . 2 . . . . . . Hacking Detections 37 | . 1 3 5 3 2 . 15 1 . 7 Full Trace Events 22 | . . 1 4 2 . . 9 . . 6 Feedback Events 2 | . . . . 1 . . 1 . . . Corruption 2 | . . . . 1 . . 1 . . . Feedback Blocked . | . . . . . . . . . . . Robot Schematics Acquired 1 | . . . . . . . 1 . . . Robots Built . | . . . . . . . . . . . Matter . | . . . . . . . . . . . Time . | . . . . . . . . . . . Total Robot Build Rating . | . . . . . . . . . . . Part Schematics Acquired 2 | . . . . . . . 1 . . 1 Parts Built . | . . . . . . . . . . . Matter . | . . . . . . . . . . . Time . | . . . . . . . . . . . Total Part Build Rating . | . . . . . . . . . . . Parts Repaired 4 | . . . 1 . . . 3 . . . Time 146 | . . . 32 . . . 114 . . . Parts Recycled . | . . . . . . . . . . . Recycled Matter . | . . . . . . . . . . . Retrieved Matter . | . . . . . . . . . . . Retrieved Components . | . . . . . . . . . . . Parts Scanalyzed . | . . . . . . . . . . . Part Schematics Acquired . | . . . . . . . . . . . Parts Damaged . | . . . . . . . . . . . Bothacking | -11 -10 -9 -8 -7 -6 -5 -5 -5 -5 -5 ------------ Run | Scr Mat Mat Mat Fac Fac Fac Ext Cet Arc Hub Used RIF Installer . | . . . . . . . . . . . Robots Hacked . | . . . . . . . . . . . Non-combat . | . . . . . . . . . . . Combat . | . . . . . . . . . . . Robot Hacks Applied . | . . . . . . . . . . . Relay Couplers Released . | . . . . . . . . . . . Robots Rewired . | . . . . . . . . . . . Allies Hacked . | . . . . . . . . . . . Hacks Repelled . | . . . . . . . . . . . Allies | -11 -10 -9 -8 -7 -6 -5 -5 -5 -5 -5 -------- Run | Scr Mat Mat Mat Fac Fac Fac Ext Cet Arc Hub Total Allies 15 | . . . . . . . 15 . . . Largest Group 8 | . . . . . . . 8 7 1 . Highest-Rated Group 351 | . . . . . . . 351 320 150 . Highest-Rated Ally 156 | . . . . . . . 156 156 150 . Total Orders . | . . . . . . . . . . . Ally Attacks 193 | . . . . . . . 118 75 . . Total Damage 5139 | . . . . . . . 3515 1624 . . Kills 34 | . . . . . . . 24 10 . . Allies Corrupted 1 | . . . . . . . 1 . . . Allies Melted . | . . . . . . . . . . . Intel | -11 -10 -9 -8 -7 -6 -5 -5 -5 -5 -5 ------- Run | Scr Mat Mat Mat Fac Fac Fac Ext Cet Arc Hub Robot Analysis Total . | . . . . . . . . . . . Derelict Logs Recovered . | . . . . . . . . . . . Drone Launches . | . . . . . . . . . . . Drone Recoveries . | . . . . . . . . . . . Exploration | -11 -10 -9 -8 -7 -6 -5 -5 -5 -5 -5 ------------- Run | Scr Mat Mat Mat Fac Fac Fac Ext Cet Arc Hub Turns Passed 10218 | 68 365 549 1468 1526 862 212 1872 302 179 2815 Spaces Moved 5326 | 50 226 331 716 812 464 130 857 194 116 1430 Core 38 | 21 11 . 6 . . . . . . . Treads . | . . . . . . . . . . . Legs 5288 | 29 215 331 710 812 464 130 857 194 116 1430 Wheels . | . . . . . . . . . . . Hover . | . . . . . . . . . . . Flight . | . . . . . . . . . . . Fastest Speed 50 | 50 120 120 120 150 122 122 122 122 122 120 Average Speed 138 | 97 135 120 140 155 126 142 136 122 122 142 Slowest Speed 650 | 120 350 120 650 180 210 152 185 122 122 153 Overloaded Moves . | . . . . . . . . . . . Propulsion Burnouts . | . . . . . . . . . . . Robots Hopped . | . . . . . . . . . . . Cave-ins Triggered 1 | . . . 1 . . . . . . . Exploration Rate (%) 48 | 3 38 29 67 27 19 3 83 84 89 91 Regions Visited 10 Branch Regions 4 Pre-discovered Areas . | . . . . . . . . . . . Known Exits Taken 10 | 1 1 1 1 1 1 1 1 1 1 . Unknown Exits Taken . | . . . . . . . . . . . Scrap Searched . | . . . . . . . . . . . Spaces Dug 3 | . . . . . . . 2 . . 1 Terrain Destroyed 357 | . . . 2 12 16 2 17 2 2 304 Melee . | . . . . . . . . . . . Projectile 203 | . . . 2 12 16 2 17 2 2 150 AOE 154 | . . . . . . . . . . 154 Terrain Rammed . | . . . . . . . . . . . Walls Destroyed . | . . . . . . . . . . . Machines Disabled . | . . . . . . . . . . . Actions | -11 -10 -9 -8 -7 -6 -5 -5 -5 -5 -5 --------- Run | Scr Mat Mat Mat Fac Fac Fac Ext Cet Arc Hub Total 6895 | 65 270 395 960 940 579 139 1444 220 128 1755 Wait 740 | 5 27 10 72 42 30 . 506 9 . 39 Move 5316 | 49 225 330 715 811 463 129 856 193 115 1430 Hop . | . . . . . . . . . . . Pick Up 33 | 4 4 1 8 1 . 1 8 1 1 4 Fast Attach 50 | 7 . . 12 1 4 . 4 . . 22 Attach 46 | . 1 2 9 4 7 2 2 . 2 17 Detach 4 | . . . . . . . . . . 4 Swap 28 | . 2 2 8 1 2 . 5 . . 8 Drop 23 | . 2 1 7 1 1 . 2 1 . 8 Fire 631 | . 9 49 129 79 72 7 43 16 10 217 Melee 1 | . . . . . . . . . . 1 Ram . | . . . . . . . . . . . Kick 8 | . . . . . . . 3 . . 5 Crush . | . . . . . . . . . . . Escape Stasis 15 | . . . . . . . 15 . . . Rewire . | . . . . . . . . . . . Trap . | . . . . . . . . . . . Miscellaneous . | . . . . . . . . . . . Route ------- -11/Scrapyard -10/Materials (discovered 3 exits: *Mat / *Min x2) -9/Materials -8/Materials -7/Factory (discovered 4 exits: *Fac / *Sto / *Low x2) -6/Factory -5/Factory -5/Extension (discovered 3 exits: *Fac x2 / *Cet) -5/Cetus -5/Archives (discovered 3 exits: *Fac / *Hub x2) -5/Hub_04(d) (discovered 4 exits: *Fac x4) History --------- Turn | Location | Event 42 | -11/Scrapyard | Identified exit to Materials 42 | -11/Scrapyard | Discovered exit to Materials (range 15) 69 | -11/Scrapyard | Entered Materials 69 | -10/Materials | Evolved 1 slot: Power x1 270 | -10/Materials | Identified exit to Mines 315 | -10/Materials | Build established: Hacker-Mutant 353 | -10/Materials | Identified exit to Materials 353 | -10/Materials | Discovered exit to Materials (range 4) 434 | -10/Materials | Entered another Materials area 434 | -9/Materials | Evolved 2 slots: Propulsion x2 935 | -9/Materials | Identified exit to Materials 935 | -9/Materials | Discovered exit to Materials (range 15) 983 | -9/Materials | Entered another Materials area 983 | -8/Materials | Evolved 2 slots: Utility x2 1199 | -8/Materials | Repaired Imp. Aluminum Leg 1316 | -8/Materials | Crushed by falling debris 1352 | -8/Materials | Lost 5 parts (3n1u1w) 1987 | -8/Materials | Build established: Scavenger-Mutant 2098 | -8/Materials | Found Powered Armor 2422 | -8/Materials | Identified exit to Factory 2422 | -8/Materials | Discovered exit to Factory (range 10) 2451 | -8/Materials | Entered Factory 2451 | -7/Factory | Evolved 2 slots: Utility x1, Weapon x1 2759 | -7/Factory | Build established: Scavenger-Gunner 3057 | -7/Factory | Identified exit to Lower Caves 3057 | -7/Factory | Discovered exit to Lower Caves (range 15) 3221 | -7/Factory | Identified exit to Storage 3576 | -7/Factory | Build established: Hacker-Gunner 3712 | -7/Factory | Lost 3 parts (1p1n1w) 3961 | -7/Factory | Identified exit to Factory 3961 | -7/Factory | Discovered exit to Factory (range 8) 3977 | -7/Factory | Entered another Factory area 3977 | -6/Factory | Evolved 2 slots: Utility x2 4359 | -6/Factory | Lost 3 parts (1p1n1w) 4764 | -6/Factory | Identified exit to Factory 4764 | -6/Factory | Discovered exit to Factory (range 16) 4809 | -6/Factory | Build established: Hacker-Tank 4839 | -6/Factory | Entered another Factory area 4839 | -5/Factory | Evolved 2 slots: Utility x1, Weapon x1 5031 | -5/Factory | Identified exit to Extension 5031 | -5/Factory | Discovered exit to Extension (range 14) 5051 | -5/Factory | Entered Extension 5142 | -5/Extension | Rescued A7 5229 | -5/Extension | Rescued a captive Derelict 5360 | -5/Extension | Rescued a captive Derelict 5361 | -5/Extension | Rescued a captive Derelict 5395 | -5/Extension | Rescued a captive Derelict 5433 | -5/Extension | Rescued a captive Derelict 5519 | -5/Extension | Repaired Lrg. Matter Pod 5565 | -5/Extension | Repaired Gauss Cannon 5610 | -5/Extension | Repaired Imp. Titanium Leg 5633 | -5/Extension | Build established: Scavenger-Tank 5687 | -5/Extension | Rescued a captive Derelict 5701 | -5/Extension | Rescued a captive Derelict 5792 | -5/Extension | Spotted B-75 Beast 5800 | -5/Extension | Spotted B-75 Beast 5815 | -5/Extension | Destroyed B-75 Beast 5838 | -5/Extension | Allies destroyed B-75 Beast 5866 | -5/Extension | Identified exit to Factory 5866 | -5/Extension | Discovered exit to Factory (range 3) 5985 | -5/Extension | Rescued a captive Derelict 6050 | -5/Extension | Rescued a captive Derelict 6050 | -5/Extension | Rescued a captive Derelict 6480 | -5/Extension | Rescued a captive Derelict 6556 | -5/Extension | Rescued a captive Derelict 6556 | -5/Extension | Rescued a captive Derelict 6594 | -5/Extension | Rescued a captive Derelict 6676 | -5/Extension | Discovered exit to Factory (range 10) 6677 | -5/Extension | Identified exit to Cetus 6677 | -5/Extension | Discovered exit to Cetus (range 6) 6923 | -5/Extension | Entered Cetus 6923 | -5/Cetus | Accompanied by 7 allies (A7) 6928 | -5/Cetus | Acquired a Cetus Manufacturing Module code from A7 6940 | -5/Cetus | Spotted Cetus Guard 6940 | -5/Cetus | Spotted Cetus Guard 6942 | -5/Cetus | Spotted Cetus Guard 6944 | -5/Cetus | Spotted Cetus Guard 6951 | -5/Cetus | Allies destroyed Cetus Guard 6959 | -5/Cetus | Allies destroyed Cetus Guard 6960 | -5/Cetus | Allies destroyed Cetus Guard 6962 | -5/Cetus | Allies destroyed Cetus Guard 7091 | -5/Cetus | Escorted A7 to Cetus Mainframe 7168 | -5/Cetus | Identified exit to Archives 7168 | -5/Cetus | Discovered exit to Archives (range 15) 7191 | -5/Cetus | Spotted Cetus Guard 7192 | -5/Cetus | Spotted Cetus Guard 7225 | -5/Cetus | Entered Archives 7225 | -5/Archives | Accompanied by 1 ally (A7) 7230 | -5/Archives | Received a hacking code to weaken MAIN.C 7305 | -5/Archives | Unable to access archive contents 7308 | -5/Archives | Identified exit to Hub_04(d) 7308 | -5/Archives | Discovered exit to Hub_04(d) (range 15) 7353 | -5/Archives | Unable to access archive contents 7365 | -5/Archives | Unable to access archive contents 7370 | -5/Archives | Discovered exit to Factory (range 15) 7381 | -5/Archives | Discovered exit to Hub_04(d) (range 14) 7404 | -5/Archives | Entered Hub_04(d) 7483 | -5/Hub_04(d) | Discovered exit to Factory (range 3) 7503 | -5/Hub_04(d) | Garrison activated, responded to threat 7542 | -5/Hub_04(d) | Lost 4 parts (1p1u2w) 7599 | -5/Hub_04(d) | Build established: Hacker-Gunner 7656 | -5/Hub_04(d) | Discovered exit to Factory (range 12) 7669 | -5/Hub_04(d) | Spotted B-75 Beast 7696 | -5/Hub_04(d) | Destroyed B-75 Beast 7715 | -5/Hub_04(d) | Discovered exit to Factory (range 9) 8004 | -5/Hub_04(d) | First assault squad dispatched 8119 | -5/Hub_04(d) | Lost 4 parts (2u2w) 8183 | -5/Hub_04(d) | Lost 3 parts (1n2u) 8223 | -5/Hub_04(d) | Destroyed 7 combat bots 8304 | -5/Hub_04(d) | Lost 4 parts (1p1n2w) 8895 | -5/Hub_04(d) | Discovered exit to Factory (range 6) 9522 | -5/Hub_04(d) | Network Hub disabled 9673 | -5/Hub_04(d) | Spotted Lightning 9673 | -5/Hub_04(d) | Spotted Lightning 9673 | -5/Hub_04(d) | Spotted Lightning 9682 | -5/Hub_04(d) | System corruption reached 10% 9688 | -5/Hub_04(d) | Destroyed Lightning 9720 | -5/Hub_04(d) | Destroyed Lightning 9741 | -5/Hub_04(d) | Lost 4 parts (1p1n1u1w) 9743 | -5/Hub_04(d) | Found Prototype Processor 9743 | -5/Hub_04(d) | Identified Exp. Targeting Computer 9751 | -5/Hub_04(d) | Destroyed Lightning 10114 | -5/Hub_04(d) | Spotted Lightning 10117 | -5/Hub_04(d) | Spotted Lightning 10119 | -5/Hub_04(d) | Spotted Lightning 10147 | -5/Hub_04(d) | Core integrity fell below 50% 10156 | -5/Hub_04(d) | Lost 4 parts (1n1u2w) 10185 | -5/Hub_04(d) | Spotted Lightning 10185 | -5/Hub_04(d) | Spotted Lightning 10185 | -5/Hub_04(d) | Spotted Lightning 10195 | -5/Hub_04(d) | System corruption reached 30% 10209 | -5/Hub_04(d) | Core integrity fell below 20% 10220 | -5/Hub_04(d) | Core destroyed Last Messages --------------- 10214_ Overheating: Flexi-carbon Leg damaged (-18). 10214_ EMDS Slug penetrates Wall. 10215_ System corrupted: Mass Driver targeting data glitched. 10215_ Slug penetrates I-47 Archangel. 10215_ Penetrated by EMDS Slug. 10215_ Broken Flexi-carbon Leg destroyed. 10215_ EMDS Slug penetrates Wall. 10216_ Tesla Rifle destroyed. 10217_ Overheating: Matter decay (-42). 10217_ EMDS Slug penetrates Wall. 10217_ Lyr. Medium Armor Plating destroyed. 10218_ Overheating: Energy Well damaged (-9). 10218_ Overheating: Enh. Armored Leg damaged (-129). 10218_ Overheating: Exp. Targeting Computer damaged (-5). 10218_ System corrupted: Mass Driver targeting data glitched. 10218_ I-47 Archangel knocked back. 10219_ Overheating: System interference. 10219_ Imp. System Backup Module temporarily disabled. 10219_ EMDS Slug penetrates Wall. 10220_ Overheating: Core damaged (-200). Map ----- +----------------------------------------------------+ | # !*= #?????????#*#?# # """ """ ?? | | " [ !! [[ #?????????# #?# #? ??? | | + """=""" [[ #####?????# #?# #?? ??? | | ## [ *########### #########/######"""#### | | # """ """ [%+!*!=%*= = ! = =| | | ## """T""" !*################# !!!* ! | | ?##################?????? #???# ==* | | ?????????????????????????# #???# ######### !##### | | ?????????????????????????#######+######### # | | ????????????????????????????# # # | | ????????????????????????????## #*! # | | ????????????????????????###### """ #==*# """ | | ????????????????????????# " """" +!% + """ | | ????????????????????????# ####! """" #=[=# """ | | ????????????????????????# #??#! #[=*# """ | | ????????????????????????# #??# "=%*# | | ???????????????????????## #??############# ![# | | ???????????????????????#; #????# #=!!##### | | ???????????????????????#;+##???# T #|%!##??? | | ???????????????????????# #???# # * ##??? | | ?????????+ #######/#### h"#???# """" # #???? | | ?????????# ##h "#???# """" # #???? | | ?????????# h #???# """" " #???? | | ??????????####+##" # ## #???# """" # #???? | | ??????????# #??# ## "#???# #= #???? | | ??????????# """ #??# #; @"#######+####### =!##### | | ??????????# "T" #??# ## "## #?#""* # | | ??????????# #?## ## ## """ #?#T *# " " | | ??????????# ### ##;### #?### # " " | | ??????????# """ + ! # #?###%= # " " | | ??????????# #""!!% = + !! #?#""! # | | ??????????# """ ### ### # ! #?#T # " " | | ??????????# ####+##### # #?### + " " | | ??????????#!!! # + # """ #???# # " " | | ??????????#!!! # ## # #???# # | | ??????????#!! =# ## #####+######## ##+## | | ??????????# ![# ## #???# ## #? | | ??????????# """%# "# #???# #########+###+#? | | ??????????# *[# "# #???# #????# #? | | ??????????#### "# "? #???# #????# #? | | ?????????????##"# #? #???# #????# #? | | ??????????????# # #? #???# #????# #? | | ??????????????#############+#???# +????# #? | | ??????????????# |%! ##??###????# #? | | ??????????????# #?##???????# #? | | ????########### """ " """ # #????# #? | | ????# ] # *! """#???????# #? | | ????# #+###+############################## | | ????# " " " # * | | ????# " " " + | +----------------------------------------------------+ Best States ------------- Heat Dissipation 78 Energy Generation 43 Energy Capacity 1090 Matter Stores 800 Matter Capacity 800 Sight Range 16 Robot Scan Range 10 Terrain Scan Density 10 Armor Coverage 625 Resistance: KI 35 Resistance: TH 35 Resistance: EX 35 Resistance: EM 35 Resistance: I 35 Resistance: S 35 Resistance: P 35 Core Shielding 20 Power Shielding 33 Propulsion Shielding 33 Evasion (%) 50 Targeting Accuracy 26 Matter Filtering 30 Offensive Hacking 20 Defensive Hacking 10 Item Schematics ----------------- Adv. Cooling System | -5/Extension | Hacked Enh. Coil Gun | -5/Hub_04(d) | Hacked Robot Schematics ------------------ R-10 Processor | -5/Extension | Hacked Fabricated ------------ Nothing Alien Tech Used ----------------- None Achievements -------------- Main Advantage Challenges ------------ None Game ------ Seed FieldHypervelocityFlail Manual? 0 Play Time 01:51:12 Cumulative 952.8 hours Start 2021.05.06 @ 10:07:02 End 2021.10.21 @ 15:39:02 Sessions 7 Manual Loads 0 Difficulty Explorer Special Mode None Game No. 721 Rogue 62 Adventurer 0 Explorer 659 Win Type - Total 4 Types 4/0/0/0/0/0/0/0/0 Lore% 73 Gallery% 81 Achievement% 59 Wizard Run 0 Options --------- ASCII 0 Keyboard 0 Movement Mouse Keybinds 0 Fullscreen 1 Font 24/Smallcaps Map View 76x50 Tactical HUD 1 Map Filters NONE Filters NONE Steam 1 RUN: 57e17e7f-3c10-445a-b837-885a1772e093